[Event "Late-Titled-Tuesday-Blitz-March-19-2024"]
[Site "Chess.com"]
[Date "2024.03.19"]
[Round "6"]
[White "jodarmarlon1985"]
[Black "zverr1"]
[Result "0-1"]
[WhiteElo "2284"]
[BlackElo "2536"]
[TimeControl "180+1"]
[EndTime "15:06:19 PDT"]
[Termination "zverr1 won by resignation"]

1. e4 {[%clk 0:02:58]} 1... c5 {[%clk 0:02:59.4]} 2. Nf3 {[%clk 0:02:57.7]} 2...
e6 {[%clk 0:02:57.3]} 3. d4 {[%clk 0:02:57.6]} 3... cxd4 {[%clk 0:02:58.2]} 4.
Nxd4 {[%clk 0:02:57.9]} 4... Nf6 {[%clk 0:02:58.8]} 5. Nc3 {[%clk 0:02:57.6]}
5... Nc6 {[%clk 0:02:59.2]} 6. Ndb5 {[%clk 0:02:57.4]} 6... Bc5 {[%clk
0:02:56.9]} 7. Bf4 {[%clk 0:02:50.9]} 7... O-O {[%clk 0:02:54.9]} 8. Bd6 {[%clk
0:02:50.6]} 8... Bxd6 {[%clk 0:02:50.2]} 9. Qxd6 {[%clk 0:02:51]} 9... Ne8
{[%clk 0:02:39.1]} 10. Qd2 {[%clk 0:02:48]} 10... Qe7 {[%clk 0:02:19.9]} 11.
O-O-O {[%clk 0:02:45.2]} 11... a6 {[%clk 0:02:18.7]} 12. Nd6 {[%clk 0:02:43.8]}
12... Nxd6 {[%clk 0:02:19]} 13. Qxd6 {[%clk 0:02:44.4]} 13... Qxd6 {[%clk
0:02:18.1]} 14. Rxd6 {[%clk 0:02:45.3]} 14... f6 {[%clk 0:02:08.9]} 15. Be2
{[%clk 0:02:44.5]} 15... Kf7 {[%clk 0:02:07.2]} 16. Rhd1 {[%clk 0:02:43.8]}
16... Ke7 {[%clk 0:02:07.6]} 17. Na4 {[%clk 0:02:39.1]} 17... b5 {[%clk
0:01:57.9]} 18. Nb6 {[%clk 0:02:38.7]} 18... Ra7 {[%clk 0:01:58.3]} 19. f4
{[%clk 0:02:25.2]} 19... Rb7 {[%clk 0:01:56.6]} 20. Nxc8+ {[%clk 0:02:19.7]}
20... Rxc8 {[%clk 0:01:57.5]} 21. Bf3 {[%clk 0:02:08.1]} 21... Rbc7 {[%clk
0:01:54.5]} 22. Kb1 {[%clk 0:02:04]} 22... b4 {[%clk 0:01:40.3]} 23. Be2 {[%clk
0:02:01.2]} 23... a5 {[%clk 0:01:40.6]} 24. Bb5 {[%clk 0:01:58.6]} 24... Nb8
{[%clk 0:01:32.3]} 25. Ba4 {[%clk 0:01:55.3]} 25... Rc4 {[%clk 0:01:24.8]} 26.
e5 {[%clk 0:01:49.3]} 26... Rxf4 {[%clk 0:01:06]} 27. Bxd7 {[%clk 0:01:10.3]}
27... Rd8 {[%clk 0:00:59.4]} 28. Bb5 {[%clk 0:01:06.6]} 28... Rxd6 {[%clk
0:00:54.5]} 29. exd6+ {[%clk 0:01:07.5]} 29... Kd8 {[%clk 0:00:54.1]} 30. b3
{[%clk 0:01:05.2]} 30... Nd7 {[%clk 0:00:52.2]} 31. Re1 {[%clk 0:01:02.5]} 31...
e5 {[%clk 0:00:43.7]} 32. Re3 {[%clk 0:01:01.9]} 32... Rd4 {[%clk 0:00:42.6]}
33. Rh3 {[%clk 0:01:00.4]} 33... Nf8 {[%clk 0:00:40.6]} 34. d7 {[%clk
0:00:56.3]} 34... h6 {[%clk 0:00:33.9]} 35. Rg3 {[%clk 0:00:56.2]} 35... g5
{[%clk 0:00:30.3]} 36. c3 {[%clk 0:00:53.2]} 36... bxc3 {[%clk 0:00:28.8]} 37.
Rxc3 {[%clk 0:00:54.1]} 37... Nxd7 {[%clk 0:00:28.8]} 38. Rc6 {[%clk 0:00:49.8]}
38... Ke7 {[%clk 0:00:25.3]} 39. Ra6 {[%clk 0:00:46.9]} 39... Nc5 {[%clk
0:00:20.1]} 40. Rxa5 {[%clk 0:00:45.4]} 40... Ne4 {[%clk 0:00:20.7]} 41. Ra7+
{[%clk 0:00:36.3]} 41... Kd6 {[%clk 0:00:20.8]} 42. Be8 {[%clk 0:00:35.9]} 42...
Rd2 {[%clk 0:00:19.7]} 43. Rd7+ {[%clk 0:00:35.2]} 43... Kc5 {[%clk 0:00:20.3]}
44. Rxd2 {[%clk 0:00:35.2]} 44... Nxd2+ {[%clk 0:00:21.2]} 45. Kc2 {[%clk
0:00:35.8]} 45... Nf1 {[%clk 0:00:21.4]} 46. Kc3 {[%clk 0:00:35.4]} 46... Nxh2
{[%clk 0:00:19.2]} 47. b4+ {[%clk 0:00:35.5]} 47... Kb6 {[%clk 0:00:17.6]} 48.
a4 {[%clk 0:00:35.4]} 48... Ng4 {[%clk 0:00:15.4]} 49. a5+ {[%clk 0:00:36.3]}
49... Ka6 {[%clk 0:00:14.9]} 50. Bh5 {[%clk 0:00:32.6]} 50... f5 {[%clk
0:00:11.2]} 51. Bxg4 {[%clk 0:00:17.9]} 51... fxg4 {[%clk 0:00:11.1]} 52. Kd3
{[%clk 0:00:17.2]} 52... h5 {[%clk 0:00:09.8]} 53. Ke4 {[%clk 0:00:17.8]} 53...
h4 {[%clk 0:00:09.7]} 54. Ke3 {[%clk 0:00:17.1]} 54... h3 {[%clk 0:00:09.3]} 55.
gxh3 {[%clk 0:00:17.1]} 55... gxh3 {[%clk 0:00:10.2]} 56. Kf3 {[%clk 0:00:17.7]}
56... g4+ {[%clk 0:00:10.4]} 57. Kg3 {[%clk 0:00:18]} 57... e4 {[%clk
0:00:10.9]} 58. Kxg4 {[%clk 0:00:16.6]} 58... h2 {[%clk 0:00:11.3]} 59. Kf4
{[%clk 0:00:16.4]} 59... h1=Q {[%clk 0:00:12.2]} 60. Ke3 {[%clk 0:00:16.4]}
60... Qf3+ {[%clk 0:00:12.7]} 61. Kd4 {[%clk 0:00:17.3]} 61... Qd3+ {[%clk
0:00:13.1]} 62. Kc5 {[%clk 0:00:17.6]} 62... Qb5+ {[%clk 0:00:12.3]} 63. Kd4
{[%clk 0:00:17.8]} 63... Qxb4+ {[%clk 0:00:13]} 64. Ke3 {[%clk 0:00:18.7]} 64...
Kxa5 {[%clk 0:00:13.5]} 65. Kf4 {[%clk 0:00:19.6]} 65... Kb5 {[%clk 0:00:14.4]}
66. Ke3 {[%clk 0:00:20.5]} 66... Kc5 {[%clk 0:00:15.2]} 67. Kf4 {[%clk
0:00:21.4]} 67... Kd5 {[%clk 0:00:16.1]} 68. Ke3 {[%clk 0:00:22.1]} 68... Ke5
{[%clk 0:00:16.7]} 0-1

[Event "Late-Titled-Tuesday-Blitz-March-19-2024"]
[Site "Chess.com"]
[Date "2024.03.19"]
[Round "6"]
[White "protectiago"]
[Black "Felix-Rose"]
[Result "1-0"]
[WhiteElo "2077"]
[BlackElo "2254"]
[TimeControl "180+1"]
[EndTime "15:06:25 PDT"]
[Termination "protectiago won on time"]

1. d4 {[%clk 0:02:59.8]} 1... d5 {[%clk 0:02:39.9]} 2. c4 {[%clk 0:02:59.4]}
2... e6 {[%clk 0:02:39.8]} 3. g3 {[%clk 0:02:59.9]} 3... Nf6 {[%clk 0:02:39.7]}
4. Nf3 {[%clk 0:02:59.6]} 4... Be7 {[%clk 0:02:40.1]} 5. Bg2 {[%clk 0:02:58.3]}
5... O-O {[%clk 0:02:40.5]} 6. Nbd2 {[%clk 0:02:55.9]} 6... c5 {[%clk
0:02:35.7]} 7. cxd5 {[%clk 0:02:45.7]} 7... Nxd5 {[%clk 0:02:35.2]} 8. e4 {[%clk
0:02:42.5]} 8... Nb4 {[%clk 0:02:35.4]} 9. O-O {[%clk 0:02:39.6]} 9... cxd4
{[%clk 0:02:34.9]} 10. Nb3 {[%clk 0:02:37]} 10... d3 {[%clk 0:02:30.4]} 11. Bd2
{[%clk 0:02:32.4]} 11... N8c6 {[%clk 0:02:24.6]} 12. Bc3 {[%clk 0:02:18]} 12...
Bf6 {[%clk 0:02:06.9]} 13. e5 {[%clk 0:02:03.7]} 13... Be7 {[%clk 0:02:00.3]}
14. Qd2 {[%clk 0:01:06.9]} 14... Qd7 {[%clk 0:01:53.2]} 15. Rad1 {[%clk
0:01:04.4]} 15... Rd8 {[%clk 0:01:53.2]} 16. Ne1 {[%clk 0:00:41.2]} 16... Nxa2
{[%clk 0:01:47.7]} 17. Nxd3 {[%clk 0:00:32.9]} 17... Nxc3 {[%clk 0:01:39.3]} 18.
Qxc3 {[%clk 0:00:32.9]} 18... a5 {[%clk 0:01:10.7]} 19. Ndc5 {[%clk 0:00:20.1]}
19... Qxd1 {[%clk 0:01:10.5]} 20. Rxd1 {[%clk 0:00:20.4]} 20... Rxd1+ {[%clk
0:01:10.7]} 21. Bf1 {[%clk 0:00:20.8]} 21... b6 {[%clk 0:00:52.4]} 22. Ne4
{[%clk 0:00:18.3]} 22... Nb4 {[%clk 0:00:43.6]} 23. Nbd2 {[%clk 0:00:17.3]}
23... Ba6 {[%clk 0:00:41.4]} 24. Kg2 {[%clk 0:00:16.2]} 24... Bxf1+ {[%clk
0:00:39.6]} 25. Nxf1 {[%clk 0:00:16.4]} 25... Rad8 {[%clk 0:00:35.4]} 26. Ne3
{[%clk 0:00:15.9]} 26... R1d3 {[%clk 0:00:34.7]} 27. Qc7 {[%clk 0:00:15.5]}
27... Bc5 {[%clk 0:00:20.8]} 28. Ng4 {[%clk 0:00:10.5]} 28... R3d7 {[%clk
0:00:17.3]} 29. Nef6+ {[%clk 0:00:07.7]} 29... gxf6 {[%clk 0:00:17]} 30. Nxf6+
{[%clk 0:00:07.9]} 30... Kg7 {[%clk 0:00:17.5]} 31. Nxd7 {[%clk 0:00:08.3]}
31... Ra8 {[%clk 0:00:12.5]} 32. Nxc5 {[%clk 0:00:08.5]} 32... Nd5 {[%clk
0:00:13.2]} 33. Qc6 {[%clk 0:00:07.9]} 33... bxc5 {[%clk 0:00:11.4]} 34. Qxa8
{[%clk 0:00:07.8]} 34... Nb4 {[%clk 0:00:12]} 35. Qxa5 {[%clk 0:00:07.6]} 35...
Nd3 {[%clk 0:00:12.8]} 36. Qc3 {[%clk 0:00:06.4]} 36... Nb4 {[%clk 0:00:11.7]}
37. Qxc5 {[%clk 0:00:06.1]} 37... Nd5 {[%clk 0:00:12.6]} 38. Qd6 {[%clk
0:00:06]} 38... h5 {[%clk 0:00:13.5]} 39. b4 {[%clk 0:00:05.8]} 39... Kg6 {[%clk
0:00:14.4]} 40. b5 {[%clk 0:00:06.1]} 40... Kf5 {[%clk 0:00:15.1]} 41. b6 {[%clk
0:00:06.4]} 41... f6 {[%clk 0:00:15.8]} 42. b7 {[%clk 0:00:06.4]} 42... fxe5
{[%clk 0:00:15.9]} 43. b8=Q {[%clk 0:00:06.4]} 43... h4 {[%clk 0:00:16.1]} 44.
Qbf8+ {[%clk 0:00:06.9]} 44... Ke4 {[%clk 0:00:16.4]} 45. Qf3+ {[%clk
0:00:05.8]} 45... Kd4 {[%clk 0:00:16.4]} 46. Qxe6 {[%clk 0:00:05.6]} 46... h3+
{[%clk 0:00:17.3]} 47. Kxh3 {[%clk 0:00:05]} 47... Nf4+ {[%clk 0:00:15.2]} 48.
gxf4 {[%clk 0:00:05.3]} 48... exf4 {[%clk 0:00:15.5]} 49. Qee4+ {[%clk
0:00:05.7]} 49... Kc5 {[%clk 0:00:15.5]} 50. Qh5+ {[%clk 0:00:05.7]} 50... Kd6
{[%clk 0:00:15.8]} 51. Qeg6+ {[%clk 0:00:06.3]} 51... Ke7 {[%clk 0:00:16]} 52.
Qhh7+ {[%clk 0:00:07]} 1-0

[Event "Late-Titled-Tuesday-Blitz-March-19-2024"]
[Site "Chess.com"]
[Date "2024.03.19"]
[Round "6"]
[White "GodzillaChessYoutube"]
[Black "Statham_01"]
[Result "1-0"]
[WhiteElo "2701"]
[BlackElo "2569"]
[TimeControl "180+1"]
[EndTime "15:06:26 PDT"]
[Termination "GodzillaChessYoutube won by checkmate"]

1. d4 {[%clk 0:03:00.9]} 1... Nf6 {[%clk 0:02:57.9]} 2. Bf4 {[%clk 0:03:00.3]}
2... c5 {[%clk 0:02:52.8]} 3. dxc5 {[%clk 0:03:00]} 3... Nc6 {[%clk 0:02:50]} 4.
Nf3 {[%clk 0:02:58.6]} 4... g6 {[%clk 0:02:32.7]} 5. Nc3 {[%clk 0:02:50.6]} 5...
Qa5 {[%clk 0:02:28.2]} 6. Qd2 {[%clk 0:02:45.8]} 6... Qxc5 {[%clk 0:02:17.3]} 7.
e4 {[%clk 0:02:39.5]} 7... Bg7 {[%clk 0:02:10.9]} 8. a3 {[%clk 0:02:16.6]} 8...
Ng4 {[%clk 0:01:30]} 9. Bd3 {[%clk 0:01:54.2]} 9... d6 {[%clk 0:01:18.4]} 10. h3
{[%clk 0:01:46]} 10... Nge5 {[%clk 0:01:08.7]} 11. Nxe5 {[%clk 0:01:45.7]} 11...
Nxe5 {[%clk 0:01:05.7]} 12. Bb5+ {[%clk 0:01:32.9]} 12... Bd7 {[%clk 0:01:04]}
13. Be3 {[%clk 0:01:32]} 13... Nc4 {[%clk 0:00:39.6]} 14. Bxd7+ {[%clk
0:01:27.1]} 14... Kxd7 {[%clk 0:00:38]} 15. Bxc5 {[%clk 0:01:08.9]} 15... Nxd2
{[%clk 0:00:38]} 16. Kxd2 {[%clk 0:01:05.7]} 16... dxc5 {[%clk 0:00:38.5]} 17.
Nd5 {[%clk 0:00:41.4]} 17... e6 {[%clk 0:00:34.4]} 18. Ne3 {[%clk 0:00:41.7]}
18... Kc6 {[%clk 0:00:30.7]} 19. c3 {[%clk 0:00:39.4]} 19... b5 {[%clk 0:00:29]}
20. Kc2 {[%clk 0:00:37]} 20... a5 {[%clk 0:00:27.2]} 21. a4 {[%clk 0:00:37.3]}
21... b4 {[%clk 0:00:23.5]} 22. Nc4 {[%clk 0:00:36.3]} 22... Rhd8 {[%clk
0:00:22.3]} 23. Rhd1 {[%clk 0:00:35.3]} 23... Bf6 {[%clk 0:00:18.4]} 24. Rxd8
{[%clk 0:00:29.1]} 24... Bxd8 {[%clk 0:00:19.3]} 25. Ne5+ {[%clk 0:00:26.7]}
25... Kb7 {[%clk 0:00:13.8]} 26. Nxf7 {[%clk 0:00:24.2]} 26... Bc7 {[%clk
0:00:13.5]} 27. Ng5 {[%clk 0:00:24]} 27... c4 {[%clk 0:00:07.7]} 28. Nxe6 {[%clk
0:00:22.1]} 28... b3+ {[%clk 0:00:03.2]} 29. Kd2 {[%clk 0:00:21.7]} 29... Bd6
{[%clk 0:00:03.8]} 30. Ke2 {[%clk 0:00:20.5]} 30... Re8 {[%clk 0:00:03.7]} 31.
Nd4 {[%clk 0:00:19.8]} 31... Rxe4+ {[%clk 0:00:03.7]} 32. Kf3 {[%clk 0:00:20.5]}
32... Rf4+ {[%clk 0:00:04.3]} 33. Ke3 {[%clk 0:00:20.5]} 33... Rf6 {[%clk
0:00:03.7]} 34. Rd1 {[%clk 0:00:19.6]} 34... Bc5 {[%clk 0:00:04.1]} 35. f4
{[%clk 0:00:20]} 35... Re6+ {[%clk 0:00:03.3]} 36. Kf3 {[%clk 0:00:20]} 36...
Rd6 {[%clk 0:00:03.9]} 37. Ke4 {[%clk 0:00:20.1]} 37... Kb6 {[%clk 0:00:02.7]}
38. Rd2 {[%clk 0:00:20.3]} 38... Rd8 {[%clk 0:00:02.7]} 39. Nf3 {[%clk 0:00:20]}
39... Rxd2 {[%clk 0:00:02.7]} 40. Nxd2 {[%clk 0:00:20.9]} 40... Kc6 {[%clk
0:00:01.9]} 41. Nxc4 {[%clk 0:00:21.2]} 41... Bf8 {[%clk 0:00:01.9]} 42. Nxa5+
{[%clk 0:00:21.4]} 42... Kc5 {[%clk 0:00:02.6]} 43. Nxb3+ {[%clk 0:00:22.3]}
43... Kc4 {[%clk 0:00:03.5]} 44. Nd2+ {[%clk 0:00:22.7]} 44... Kc5 {[%clk
0:00:03.6]} 45. b4+ {[%clk 0:00:22.7]} 45... Kb6 {[%clk 0:00:04.5]} 46. a5+
{[%clk 0:00:22.8]} 46... Kb5 {[%clk 0:00:05.4]} 47. Kd3 {[%clk 0:00:23.1]} 47...
Bg7 {[%clk 0:00:05.4]} 48. Nf3 {[%clk 0:00:23.3]} 48... Ka6 {[%clk 0:00:06.3]}
49. Nd4 {[%clk 0:00:23.5]} 49... h6 {[%clk 0:00:07.2]} 50. Kc4 {[%clk
0:00:22.9]} 50... Bh8 {[%clk 0:00:08.1]} 51. f5 {[%clk 0:00:22.3]} 51... g5
{[%clk 0:00:09]} 52. Ne6 {[%clk 0:00:21.9]} 52... h5 {[%clk 0:00:09.9]} 53. Nc5+
{[%clk 0:00:22]} 53... Ka7 {[%clk 0:00:09.8]} 54. Ne4 {[%clk 0:00:22.9]} 54...
g4 {[%clk 0:00:10.6]} 55. hxg4 {[%clk 0:00:23.2]} 55... h4 {[%clk 0:00:11.5]}
56. f6 {[%clk 0:00:23.1]} 56... h3 {[%clk 0:00:11]} 57. gxh3 {[%clk 0:00:23]}
57... Ka6 {[%clk 0:00:11.9]} 58. f7 {[%clk 0:00:23.2]} 58... Bd4 {[%clk
0:00:03.4]} 59. f8=Q {[%clk 0:00:20.6]} 59... Bc5 {[%clk 0:00:04.3]} 60. Qa8+
{[%clk 0:00:20.2]} 60... Ba7 {[%clk 0:00:03.8]} 61. Nc5# {[%clk 0:00:20.8]} 1-0

[Event "Late-Titled-Tuesday-Blitz-March-19-2024"]
[Site "Chess.com"]
[Date "2024.03.19"]
[Round "6"]
[White "TregubovP"]
[Black "MetiForce"]
[Result "0-1"]
[WhiteElo "2679"]
[BlackElo "2919"]
[TimeControl "180+1"]
[EndTime "15:06:28 PDT"]
[Termination "MetiForce won on time"]

1. e4 {[%clk 0:03:00.9]} 1... e5 {[%clk 0:02:56.4]} 2. Nf3 {[%clk 0:02:56.2]}
2... Nc6 {[%clk 0:02:56.5]} 3. Bc4 {[%clk 0:02:56.5]} 3... Bc5 {[%clk
0:02:55.8]} 4. d3 {[%clk 0:02:56.2]} 4... Nf6 {[%clk 0:02:54.5]} 5. Nc3 {[%clk
0:02:56.1]} 5... h6 {[%clk 0:02:53.2]} 6. h3 {[%clk 0:02:55.5]} 6... d6 {[%clk
0:02:53.3]} 7. Na4 {[%clk 0:02:55.2]} 7... a6 {[%clk 0:02:50.5]} 8. Nxc5 {[%clk
0:02:54.7]} 8... dxc5 {[%clk 0:02:51.4]} 9. a4 {[%clk 0:02:51.3]} 9... Qd6
{[%clk 0:02:51.2]} 10. O-O {[%clk 0:02:43.9]} 10... Be6 {[%clk 0:02:51.2]} 11.
Nd2 {[%clk 0:02:42.2]} 11... Nd7 {[%clk 0:02:46.9]} 12. a5 {[%clk 0:02:38.4]}
12... O-O {[%clk 0:02:45.9]} 13. Bxe6 {[%clk 0:02:33.8]} 13... Qxe6 {[%clk
0:02:45.4]} 14. Nc4 {[%clk 0:02:34.4]} 14... b5 {[%clk 0:02:33.4]} 15. axb6
{[%clk 0:02:33.9]} 15... cxb6 {[%clk 0:02:34.3]} 16. f4 {[%clk 0:02:24.4]} 16...
exf4 {[%clk 0:02:32.8]} 17. Bxf4 {[%clk 0:02:24]} 17... f5 {[%clk 0:02:23.8]}
18. exf5 {[%clk 0:02:04.5]} 18... Rxf5 {[%clk 0:02:23.4]} 19. Qe1 {[%clk
0:01:31.8]} 19... Qf6 {[%clk 0:02:12.4]} 20. Bg3 {[%clk 0:01:23.6]} 20... b5
{[%clk 0:01:41.2]} 21. Rxf5 {[%clk 0:01:21.4]} 21... Qxf5 {[%clk 0:01:42.1]} 22.
Nd6 {[%clk 0:01:21.4]} 22... Qg6 {[%clk 0:01:42.5]} 23. Qe4 {[%clk 0:01:14.3]}
23... Qxe4 {[%clk 0:01:41.3]} 24. Nxe4 {[%clk 0:01:13.4]} 24... Nb4 {[%clk
0:01:40.5]} 25. Rc1 {[%clk 0:00:52.9]} 25... a5 {[%clk 0:01:36.1]} 26. Bd6
{[%clk 0:00:52.3]} 26... Rc8 {[%clk 0:01:35.6]} 27. Kf1 {[%clk 0:00:47.3]} 27...
Rc6 {[%clk 0:01:26.1]} 28. Ke2 {[%clk 0:00:46.3]} 28... Nf6 {[%clk 0:01:04.9]}
29. Nxf6+ {[%clk 0:00:38.6]} 29... gxf6 {[%clk 0:01:04.8]} 30. Bf4 {[%clk
0:00:38.6]} 30... h5 {[%clk 0:01:03.8]} 31. c3 {[%clk 0:00:35.1]} 31... Re6+
{[%clk 0:01:02.1]} 32. Kd2 {[%clk 0:00:33.2]} 32... Nd5 {[%clk 0:01:02.4]} 33.
Rf1 {[%clk 0:00:28.5]} 33... c4 {[%clk 0:00:53.5]} 34. dxc4 {[%clk 0:00:21.3]}
34... bxc4 {[%clk 0:00:54.4]} 35. Bg3 {[%clk 0:00:13.5]} 35... Kf7 {[%clk
0:00:51.8]} 36. Rf5 {[%clk 0:00:12.2]} 36... Ne3 {[%clk 0:00:52.2]} 37. Rf2
{[%clk 0:00:11.8]} 37... Re4 {[%clk 0:00:35.1]} 38. Bc7 {[%clk 0:00:09]} 38...
Nd5 {[%clk 0:00:12.1]} 39. Bxa5 {[%clk 0:00:08]} 39... Re8 {[%clk 0:00:08.4]}
40. Rf5 {[%clk 0:00:06.3]} 40... Ne3 {[%clk 0:00:06.5]} 41. Rxh5 {[%clk
0:00:05]} 41... Nxg2 {[%clk 0:00:04.7]} 42. Bb6 {[%clk 0:00:04.4]} 42... Nf4
{[%clk 0:00:04.1]} 43. Rh4 {[%clk 0:00:03.8]} 43... Re2+ {[%clk 0:00:02.9]} 44.
Kd1 {[%clk 0:00:03.7]} 44... Re4 {[%clk 0:00:02.9]} 45. Bc7 {[%clk 0:00:03.7]}
45... Re7 {[%clk 0:00:01.7]} 46. Rxf4 {[%clk 0:00:03.1]} 46... Rxc7 {[%clk
0:00:01.8]} 47. h4 {[%clk 0:00:03.7]} 47... Ke6 {[%clk 0:00:02.1]} 48. Kd2
{[%clk 0:00:03.6]} 48... Ke5 {[%clk 0:00:02.7]} 49. Rd4 {[%clk 0:00:03.7]} 49...
f5 {[%clk 0:00:03.2]} 50. Ke3 {[%clk 0:00:03.7]} 50... Rb7 {[%clk 0:00:03.4]}
51. Rxc4 {[%clk 0:00:02.8]} 51... Rxb2 {[%clk 0:00:04.1]} 52. Kf3 {[%clk
0:00:03]} 52... Rb1 {[%clk 0:00:03.6]} 53. Kg3 {[%clk 0:00:02]} 53... Rg1+
{[%clk 0:00:03.8]} 54. Kh2 {[%clk 0:00:02.3]} 54... Rg8 {[%clk 0:00:03.5]} 55.
h5 {[%clk 0:00:02.5]} 55... f4 {[%clk 0:00:04.1]} 56. Kh3 {[%clk 0:00:01.4]}
56... f3 {[%clk 0:00:04.3]} 0-1

[Event "Late-Titled-Tuesday-Blitz-March-19-2024"]
[Site "Chess.com"]
[Date "2024.03.19"]
[Round "6"]
[White "Cambek64"]
[Black "tylityli"]
[Result "0-1"]
[WhiteElo "2487"]
[BlackElo "2337"]
[TimeControl "180+1"]
[EndTime "15:06:30 PDT"]
[Termination "tylityli won by resignation"]

1. e4 {[%clk 0:02:59.4]} 1... e5 {[%clk 0:02:58.6]} 2. Nf3 {[%clk 0:02:59.9]}
2... Nc6 {[%clk 0:02:58.1]} 3. Bb5 {[%clk 0:03:00.4]} 3... a6 {[%clk 0:02:57.6]}
4. Bxc6 {[%clk 0:03:00.5]} 4... dxc6 {[%clk 0:02:57.6]} 5. d4 {[%clk 0:03:01.2]}
5... exd4 {[%clk 0:02:57.2]} 6. Qxd4 {[%clk 0:03:02.1]} 6... Qxd4 {[%clk
0:02:56.4]} 7. Nxd4 {[%clk 0:03:03]} 7... Bd7 {[%clk 0:02:57]} 8. Be3 {[%clk
0:03:01.8]} 8... O-O-O {[%clk 0:02:57.9]} 9. Nd2 {[%clk 0:03:02.1]} 9... Ne7
{[%clk 0:02:54.8]} 10. O-O-O {[%clk 0:03:02.2]} 10... Ng6 {[%clk 0:02:54.9]} 11.
f3 {[%clk 0:02:59]} 11... h5 {[%clk 0:02:53.9]} 12. Rhe1 {[%clk 0:02:58.6]}
12... h4 {[%clk 0:02:52.3]} 13. Nf5 {[%clk 0:02:52.8]} 13... Bxf5 {[%clk
0:02:41.6]} 14. exf5 {[%clk 0:02:53.2]} 14... Ne7 {[%clk 0:02:41.7]} 15. Bg5
{[%clk 0:02:38.8]} 15... f6 {[%clk 0:02:38.4]} 16. Bf4 {[%clk 0:02:30.6]} 16...
Nxf5 {[%clk 0:02:36.2]} 17. Ne4 {[%clk 0:02:31.3]} 17... Bd6 {[%clk 0:02:22.2]}
18. Nxd6+ {[%clk 0:02:23.4]} 18... Nxd6 {[%clk 0:02:08.1]} 19. Re7 {[%clk
0:02:19.2]} 19... Rd7 {[%clk 0:02:07.1]} 20. Rxd7 {[%clk 0:02:09.1]} 20... Kxd7
{[%clk 0:02:06.5]} 21. c4 {[%clk 0:02:09.7]} 21... c5 {[%clk 0:02:05.1]} 22. b3
{[%clk 0:02:07.8]} 22... g5 {[%clk 0:01:58.9]} 23. Be3 {[%clk 0:02:06.6]} 23...
b6 {[%clk 0:01:58.7]} 24. Kd2 {[%clk 0:02:04.9]} 24... h3 {[%clk 0:01:51.7]} 25.
g4 {[%clk 0:02:03.8]} 25... Kc6 {[%clk 0:01:37.8]} 26. Ke2 {[%clk 0:02:02.9]}
26... b5 {[%clk 0:01:25.2]} 27. cxb5+ {[%clk 0:01:47.7]} 27... axb5 {[%clk
0:01:24.4]} 28. Rc1 {[%clk 0:01:39.2]} 28... c4 {[%clk 0:01:23.7]} 29. a4 {[%clk
0:01:37.6]} 29... Ra8 {[%clk 0:01:10.8]} 30. axb5+ {[%clk 0:01:35.1]} 30... Kxb5
{[%clk 0:01:09.8]} 31. bxc4+ {[%clk 0:01:32.3]} 31... Nxc4 {[%clk 0:01:09.1]}
32. Bd4 {[%clk 0:01:32.1]} 32... Ra2+ {[%clk 0:01:05]} 33. Kd3 {[%clk
0:01:32.2]} 33... Ra3+ {[%clk 0:00:58.1]} 34. Ke4 {[%clk 0:01:06.7]} 34... Nd2+
{[%clk 0:00:51.1]} 35. Kd5 {[%clk 0:01:06.6]} 35... Nxf3 {[%clk 0:00:26.5]} 36.
Rb1+ {[%clk 0:01:03.2]} 36... Ka6 {[%clk 0:00:24.3]} 37. Bxf6 {[%clk 0:01:00.9]}
37... Nxh2 {[%clk 0:00:21.6]} 38. Kc6 {[%clk 0:00:46.7]} 38... Nxg4 {[%clk
0:00:17.8]} 39. Rb8 {[%clk 0:00:47.3]} 39... Ka7 {[%clk 0:00:14.2]} 40. Rb7+
{[%clk 0:00:38.3]} 40... Ka6 {[%clk 0:00:06.6]} 41. Rb8 {[%clk 0:00:37.5]} 41...
Ka7 {[%clk 0:00:06.3]} 42. Rb7+ {[%clk 0:00:26.4]} 42... Ka8 {[%clk 0:00:05.7]}
43. Bxg5 {[%clk 0:00:09.1]} 43... Rc3+ {[%clk 0:00:04.2]} 44. Kd5 {[%clk
0:00:08.8]} 44... Kxb7 {[%clk 0:00:04.1]} 45. Kd4 {[%clk 0:00:09.5]} 45... Rc2
{[%clk 0:00:03.9]} 46. Kd3 {[%clk 0:00:09.7]} 46... h2 {[%clk 0:00:04.5]} 47.
Kxc2 {[%clk 0:00:09.7]} 47... h1=Q {[%clk 0:00:05]} 48. Kd3 {[%clk 0:00:10.6]}
48... Qc6 {[%clk 0:00:05.8]} 49. Ke2 {[%clk 0:00:10.6]} 49... Qg6 {[%clk
0:00:05.9]} 50. Kf3 {[%clk 0:00:10.7]} 50... c6 {[%clk 0:00:06.6]} 51. Kg3
{[%clk 0:00:11.3]} 51... Qxg5 {[%clk 0:00:06.3]} 52. Kf3 {[%clk 0:00:10.3]}
52... c5 {[%clk 0:00:07.2]} 53. Ke4 {[%clk 0:00:10.4]} 53... Kc6 {[%clk
0:00:08.1]} 54. Kd3 {[%clk 0:00:10.8]} 54... Kd5 {[%clk 0:00:08]} 55. Kc3 {[%clk
0:00:10.9]} 55... c4 {[%clk 0:00:08.9]} 56. Kb4 {[%clk 0:00:11.2]} 56... Qc1
{[%clk 0:00:08.2]} 57. Kb5 {[%clk 0:00:11.6]} 57... Qb2+ {[%clk 0:00:08.3]} 58.
Ka6 {[%clk 0:00:11.5]} 58... c3 {[%clk 0:00:08.7]} 0-1